[Event "World Junior Chess Championship U20 2022"]
[White "Monferrato, Rocco"]
[Black "Mladek, Richard"]
[WhiteFideId "3016536"]
[BlackFideId "386588"]
[WhiteElo "1563"]
[BlackElo "2371"]
[Result "0-1"]
[Round "01"]
[TimeControl "5400+30"]
[Date "2022.10.12"]
[WhiteClock "0:04:55"]
[BlackClock "0:32:39"]

1. e4 {[%clk 1:30:57]}  c5 {[%clk 1:30:47]} 2. Nf3 {[%clk 1:31:20]}  d6 {[%clk 1:31:14]} 3. d4 {[%clk 1:31:39]}  cxd4 {[%clk 1:31:38]} 4. Nxd4 {[%clk 1:32:02]}  Nf6 {[%clk 1:32:04]} 5. Nc3 {[%clk 1:32:20]}  a6 {[%clk 1:32:32]} 6. Be2 {[%clk 1:32:41]}  e5 {[%clk 1:32:49]} 7. Nb3 {[%clk 1:33:05]}  Be7 {[%clk 1:32:32]} 8. Be3 {[%clk 1:33:25]}  O-O {[%clk 1:32:24]} 9. g4 {[%clk 1:33:47]}  Be6 {[%clk 1:30:13]} 10. g5 {[%clk 1:34:09]}  Ne8 {[%clk 1:28:26]} 11. Qd2 {[%clk 1:34:30]}  Nd7 {[%clk 1:24:26]} 12. Nd5 {[%clk 1:20:35]}  Bxd5 {[%clk 1:14:43]} 13. exd5 {[%clk 1:20:06]}  f5 {[%clk 1:12:50]} 14. f4 {[%clk 1:11:10]}  Qc7 {[%clk 1:03:58]} 15. h4 {[%clk 1:04:08]}  Rc8 {[%clk 0:58:33]} 16. O-O-O {[%clk 1:00:52]}  Nb6 {[%clk 0:58:16]} 17. Na5 {[%clk 0:56:11]}  Na4 {[%clk 0:58:17]} 18. Nb3 {[%clk 0:53:24]}  Bd8 {[%clk 0:49:36]} 19. fxe5 {[%clk 0:44:34]}  dxe5 {[%clk 0:49:02]} 20. c3 {[%clk 0:28:37]}  Nd6 {[%clk 0:48:35]} 21. Rdf1 {[%clk 0:17:56]}  Be7 {[%clk 0:46:36]} 22. Bf2 {[%clk 0:14:51]}  b5 {[%clk 0:39:39]} 23. Kb1 {[%clk 0:13:08]}  Kh8 {[%clk 0:35:44]} 24. Rfg1 {[%clk 0:13:08]}  Nc4 {[%clk 0:35:25]} 25. Bxc4 {[%clk 0:09:39]}  bxc4 {[%clk 0:35:41]} 26. Nc1 {[%clk 0:06:38]}  Rb8 {[%clk 0:34:48]} 27. b4 {[%clk 0:05:38]}  cxb3 {[%clk 0:35:03]} 28. axb3 {[%clk 0:05:32]}  Nxc3+ {[%clk 0:34:16]} 29. Kb2 {[%clk 0:05:19]}  Ba3+ {[%clk 0:32:37]} 30. Ka1 {[%clk 0:04:55]}  Ne4 {[%clk 0:32:39]} 0-1


[Site "http://www.chessbomb.com"]

[Event "World Junior Chess Championship U20 2022"]
[White "Rohith, Krishna S"]
[Black "Vivoli, Alessandro"]
[WhiteFideId "46617051"]
[BlackFideId "11800240"]
[WhiteElo "2370"]
[BlackElo "1555"]
[Result "1-0"]
[Round "01"]
[TimeControl "5400+30"]
[Date "2022.10.12"]
[WhiteClock "0:37:02"]
[BlackClock "0:01:24"]

1. d4 {[%clk 1:30:42]}  d5 {[%clk 1:30:52]} 2. c4 {[%clk 1:31:06]}  e6 {[%clk 1:31:16]} 3. Nf3 {[%clk 1:31:29]}  Nf6 {[%clk 1:31:36]} 4. g3 {[%clk 1:31:53]}  c6 {[%clk 1:31:22]} 5. Bg2 {[%clk 1:31:10]}  Be7 {[%clk 1:31:08]} 6. O-O {[%clk 1:31:23]}  O-O {[%clk 1:31:12]} 7. Qc2 {[%clk 1:31:25]}  Nbd7 {[%clk 1:30:50]} 8. Rd1 {[%clk 1:28:54]}  Re8 {[%clk 1:28:15]} 9. b3 {[%clk 1:27:44]}  c5 {[%clk 1:20:48]} 10. Nc3 {[%clk 1:10:26]}  dxc4 {[%clk 1:07:10]} 11. bxc4 {[%clk 1:09:57]}  cxd4 {[%clk 1:02:17]} 12. Nxd4 {[%clk 1:10:11]}  e5 {[%clk 1:01:37]} 13. Nf5 {[%clk 1:06:51]}  Bf8 {[%clk 0:47:24]} 14. Rb1 {[%clk 1:01:11]}  Rb8 {[%clk 0:44:13]} 15. Be3 {[%clk 0:59:53]}  a6 {[%clk 0:38:40]} 16. Ba7 {[%clk 0:57:37]}  Qc7 {[%clk 0:35:41]} 17. Bxb8 {[%clk 0:57:46]}  Qxb8 {[%clk 0:35:50]} 18. Ne3 {[%clk 0:52:49]}  Bc5 {[%clk 0:22:44]} 19. Ned5 {[%clk 0:52:57]}  Qa7 {[%clk 0:21:09]} 20. e3 {[%clk 0:52:41]}  Nxd5 {[%clk 0:13:41]} 21. Rxd5 {[%clk 0:48:46]}  Nf6 {[%clk 0:12:09]} 22. Rd2 {[%clk 0:48:56]}  g6 {[%clk 0:07:33]} 23. Ne4 {[%clk 0:41:46]}  Nxe4 {[%clk 0:04:16]} 24. Bxe4 {[%clk 0:42:11]}  Kg7 {[%clk 0:02:55]} 25. Qc3 {[%clk 0:39:44]}  Re7 {[%clk 0:01:38]} 26. Rd5 {[%clk 0:35:25]}  f6 {[%clk 0:01:00]} 27. Rd8 {[%clk 0:35:25]}  Be6 {[%clk 0:00:38]} 28. Bd5 {[%clk 0:35:01]}  b6 {[%clk 0:00:35]} 29. Bxe6 {[%clk 0:35:18]}  Rxe6 {[%clk 0:00:58]} 30. Rbd1 {[%clk 0:35:39]}  Re7 {[%clk 0:01:15]} 31. Qd3 {[%clk 0:35:37]}  a5 {[%clk 0:00:46]} 32. Qd5 {[%clk 0:35:29]}  Rf7 {[%clk 0:00:39]} 33. Qc6 {[%clk 0:35:55]}  Qb7 {[%clk 0:00:32]} 34. Qxb7 {[%clk 0:35:19]}  Rxb7 {[%clk 0:00:57]} 35. R1d7+ {[%clk 0:35:45]}  Rxd7 {[%clk 0:01:21]} 36. Rxd7+ {[%clk 0:36:11]}  Kg8 {[%clk 0:01:44]} 37. Kf1 {[%clk 0:35:20]}  e4 {[%clk 0:01:02]} 38. Ke2 {[%clk 0:35:42]}  f5 {[%clk 0:01:22]} 39. h3 {[%clk 0:35:08]}  h5 {[%clk 0:00:54]} 40. h4 {[%clk 0:35:29]}  Kf8 {[%clk 0:00:40]} 41. Rb7 {[%clk 0:35:49]}  Kg8 {[%clk 0:00:35]} 42. Kd1 {[%clk 0:34:44]}  Kf8 {[%clk 0:00:41]} 43. Kc2 {[%clk 0:34:55]}  Bb4 {[%clk 0:00:31]} 44. Rxb6 {[%clk 0:35:03]}  Be1 {[%clk 0:00:56]} 45. Rxg6 {[%clk 0:35:21]}  Bxf2 {[%clk 0:01:05]} 46. Kd2 {[%clk 0:35:46]}  Kf7 {[%clk 0:00:56]} 47. Rg5 {[%clk 0:36:09]}  Kf6 {[%clk 0:01:00]} 48. Ke2 {[%clk 0:36:35]}  Bg1 {[%clk 0:01:24]} 49. c5 {[%clk 0:37:02]} 1-0


[Site "http://www.chessbomb.com"]

[Event "World Junior Chess Championship U20 2022"]
[White "Abdulla, Younes Alkhemeiri"]
[Black "Vestby-Ellingsen, Mads"]
[WhiteFideId "9324577"]
[BlackFideId "1520857"]
[WhiteElo "1405"]
[BlackElo "2365"]
[Result "0-1"]
[Round "01"]
[TimeControl "5400+30"]
[Date "2022.10.12"]
[WhiteClock "0:24:57"]
[BlackClock "0:04:11"]

1. d4 {[%clk 1:30:51]}  Nf6 {[%clk 1:30:15]} 2. c4 {[%clk 1:30:41]}  c5 {[%clk 1:30:24]} 3. d5 {[%clk 1:29:32]}  e6 {[%clk 1:30:34]} 4. Nc3 {[%clk 1:28:30]}  exd5 {[%clk 1:30:47]} 5. cxd5 {[%clk 1:28:38]}  d6 {[%clk 1:31:00]} 6. e4 {[%clk 1:27:56]}  g6 {[%clk 1:31:06]} 7. Bb5+ {[%clk 1:27:21]}  Nbd7 {[%clk 1:26:46]} 8. Nf3 {[%clk 1:25:08]}  a6 {[%clk 1:26:17]} 9. Bxd7+ {[%clk 1:22:40]}  Nxd7 {[%clk 1:26:16]} 10. a4 {[%clk 1:21:47]}  Bg7 {[%clk 1:25:58]} 11. Bf4 {[%clk 1:20:42]}  Qe7 {[%clk 1:22:45]} 12. O-O {[%clk 1:20:02]}  O-O {[%clk 1:22:41]} 13. Qc1 {[%clk 1:17:19]}  Rb8 {[%clk 1:20:49]} 14. Bh6 {[%clk 1:15:24]}  b5 {[%clk 1:17:51]} 15. Bxg7 {[%clk 1:14:35]}  Kxg7 {[%clk 1:18:09]} 16. axb5 {[%clk 1:13:10]}  axb5 {[%clk 1:18:25]} 17. Qf4 {[%clk 1:04:49]}  Re8 {[%clk 1:04:17]} 18. Rfe1 {[%clk 0:56:13]}  b4 {[%clk 1:00:12]} 19. Nb1 {[%clk 0:55:17]}  Nb6 {[%clk 0:49:24]} 20. Nbd2 {[%clk 0:53:50]}  f6 {[%clk 0:45:55]} 21. b3 {[%clk 0:50:16]}  g5 {[%clk 0:34:40]} 22. Qe3 {[%clk 0:49:32]}  Bd7 {[%clk 0:32:20]} 23. Ra7 {[%clk 0:48:14]}  Ra8 {[%clk 0:32:20]} 24. Rea1 {[%clk 0:48:02]}  Rxa7 {[%clk 0:32:28]} 25. Rxa7 {[%clk 0:48:22]}  Ra8 {[%clk 0:32:44]} 26. Rxa8 {[%clk 0:48:04]}  Nxa8 {[%clk 0:33:05]} 27. Nc4 {[%clk 0:47:20]}  Bb5 {[%clk 0:24:42]} 28. Nfd2 {[%clk 0:46:22]}  Bxc4 {[%clk 0:22:10]} 29. Nxc4 {[%clk 0:46:26]}  Nc7 {[%clk 0:22:17]} 30. f3 {[%clk 0:46:07]}  Nb5 {[%clk 0:22:26]} 31. g3 {[%clk 0:42:27]}  Qa7 {[%clk 0:19:17]} 32. f4 {[%clk 0:39:05]}  Qa1+ {[%clk 0:19:05]} 33. Kf2 {[%clk 0:37:26]}  Nc3 {[%clk 0:14:35]} 34. Kg2 {[%clk 0:33:01]}  Qa2+ {[%clk 0:06:11]} 35. Kh3 {[%clk 0:32:47]}  Nd1 {[%clk 0:05:12]} 36. Qd2 {[%clk 0:31:23]}  Qxb3 {[%clk 0:05:25]} 37. Nxd6 {[%clk 0:29:13]}  Qf3 {[%clk 0:04:08]} 38. Nf5+ {[%clk 0:26:27]}  Kf8 {[%clk 0:03:58]} 39. d6 {[%clk 0:25:42]}  Nf2+ {[%clk 0:03:51]} 40. Qxf2 {[%clk 0:24:57]}  Qxf2 {[%clk 0:04:11]} 0-1


[Site "http://www.chessbomb.com"]

[Event "World Junior Chess Championship U20 2022"]
[White "Stremavicius, Pijus"]
[Black "Ghaith, Saeed Alnuaimi"]
[WhiteFideId "12812730"]
[BlackFideId "9309152"]
[WhiteElo "2363"]
[BlackElo "1269"]
[Result "1-0"]
[Round "01"]
[TimeControl "5400+30"]
[Date "2022.10.12"]
[WhiteClock "1:09:51"]
[BlackClock "0:03:21"]

1. Nf3 {[%clk 1:30:49]}  Nf6 {[%clk 1:27:17]} 2. d4 {[%clk 1:30:51]}  e6 {[%clk 1:27:38]} 3. Bg5 {[%clk 1:30:42]}  Be7 {[%clk 1:27:43]} 4. Nbd2 {[%clk 1:30:57]}  b6 {[%clk 1:27:56]} 5. e3 {[%clk 1:30:57]}  Bb7 {[%clk 1:28:14]} 6. Bd3 {[%clk 1:31:18]}  d5 {[%clk 1:27:43]} 7. Ne5 {[%clk 1:29:35]}  Nbd7 {[%clk 1:27:21]} 8. f4 {[%clk 1:29:28]}  h6 {[%clk 1:27:34]} 9. Bh4 {[%clk 1:28:54]}  c5 {[%clk 1:27:56]} 10. c3 {[%clk 1:28:56]}  O-O {[%clk 1:18:30]} 11. Bxf6 {[%clk 1:23:34]}  Bxf6 {[%clk 1:18:36]} 12. O-O {[%clk 1:20:09]}  Nxe5 {[%clk 1:11:48]} 13. fxe5 {[%clk 1:19:42]}  Bg5 {[%clk 1:11:55]} 14. Qe2 {[%clk 1:19:15]}  f5 {[%clk 1:01:27]} 15. exf6 {[%clk 1:19:39]}  Bxf6 {[%clk 1:01:46]} 16. Bc2 {[%clk 1:19:49]}  Qe7 {[%clk 0:39:28]} 17. Qd3 {[%clk 1:17:31]}  g5 {[%clk 0:39:37]} 18. Rae1 {[%clk 1:11:46]}  c4 {[%clk 0:38:01]} 19. Qg6+ {[%clk 1:11:17]}  Qg7 {[%clk 0:38:18]} 20. Qh5 {[%clk 1:11:36]}  e5 {[%clk 0:37:39]} 21. dxe5 {[%clk 1:09:57]}  Bxe5 {[%clk 0:37:05]} 22. Nf3 {[%clk 1:08:39]}  Bf6 {[%clk 0:25:23]} 23. Nd4 {[%clk 1:05:43]}  Bxd4 {[%clk 0:25:39]} 24. exd4 {[%clk 1:06:08]}  Rxf1+ {[%clk 0:25:26]} 25. Rxf1 {[%clk 1:06:37]}  Rf8 {[%clk 0:25:42]} 26. Bf5 {[%clk 1:05:52]}  Bc8 {[%clk 0:13:32]} 27. Bxc8 {[%clk 1:04:59]}  Rxc8 {[%clk 0:09:02]} 28. Qg4 {[%clk 1:04:51]}  Re8 {[%clk 0:06:50]} 29. Qf5 {[%clk 1:05:16]}  Rf8 {[%clk 0:03:59]} 30. Qxd5+ {[%clk 1:05:24]}  Kh8 {[%clk 0:04:20]} 31. Qe5 {[%clk 1:04:13]}  Qxe5 {[%clk 0:02:41]} 32. Rxf8+ {[%clk 1:04:25]}  Kg7 {[%clk 0:03:05]} 33. dxe5 {[%clk 1:04:49]}  Kxf8 {[%clk 0:03:30]} 34. Kf2 {[%clk 1:05:10]}  Ke7 {[%clk 0:03:53]} 35. Ke3 {[%clk 1:05:39]}  Ke6 {[%clk 0:04:12]} 36. Kd4 {[%clk 1:06:06]}  b5 {[%clk 0:04:12]} 37. g4 {[%clk 1:06:17]}  a6 {[%clk 0:03:55]} 38. a3 {[%clk 1:06:43]}  a5 {[%clk 0:03:00]} 39. Ke4 {[%clk 1:07:12]}  a4 {[%clk 0:02:18]} 40. Kd4 {[%clk 1:07:40]}  Kd7 {[%clk 0:02:25]} 41. Kd5 {[%clk 1:08:08]}  Ke7 {[%clk 0:02:31]} 42. e6 {[%clk 1:08:33]}  Ke8 {[%clk 0:02:33]} 43. Kd6 {[%clk 1:09:01]}  Kd8 {[%clk 0:02:55]} 44. e7+ {[%clk 1:09:26]}  Ke8 {[%clk 0:03:21]} 45. Ke6 {[%clk 1:09:51]} 1-0


[Site "http://www.chessbomb.com"]

[Event "World Junior Chess Championship U20 2022"]
[White "Salem, Muhsan Shuaib"]
[Black "Yaniv, Yuval"]
[WhiteFideId "9325824"]
[BlackFideId "2823900"]
[WhiteElo "1227"]
[BlackElo "2359"]
[Result "0-1"]
[Round "01"]
[TimeControl "5400+30"]
[Date "2022.10.12"]
[WhiteClock "0:07:24"]
[BlackClock "0:24:25"]

1. d4 {[%clk 1:27:17]}  Nf6 {[%clk 1:30:40]} 2. c4 {[%clk 1:27:40]}  g6 {[%clk 1:30:52]} 3. Nc3 {[%clk 1:27:55]}  Bg7 {[%clk 1:31:02]} 4. Bg5 {[%clk 1:28:18]}  d6 {[%clk 1:31:05]} 5. e3 {[%clk 1:28:16]}  O-O {[%clk 1:29:40]} 6. Nf3 {[%clk 1:28:09]}  Na6 {[%clk 1:21:27]} 7. Bd3 {[%clk 1:25:26]}  c5 {[%clk 1:20:31]} 8. d5 {[%clk 1:21:08]}  Nc7 {[%clk 1:17:25]} 9. O-O {[%clk 1:16:32]}  Rb8 {[%clk 1:15:58]} 10. Rb1 {[%clk 1:06:01]}  b5 {[%clk 1:09:20]} 11. b3 {[%clk 0:56:13]}  b4 {[%clk 1:07:23]} 12. Ne2 {[%clk 0:54:07]}  Bg4 {[%clk 1:00:43]} 13. Nf4 {[%clk 0:48:10]}  h6 {[%clk 0:58:37]} 14. Bxf6 {[%clk 0:48:34]}  exf6 {[%clk 0:56:01]} 15. h3 {[%clk 0:47:32]}  Bd7 {[%clk 0:56:15]} 16. Re1 {[%clk 0:42:02]}  f5 {[%clk 0:55:45]} 17. Qc2 {[%clk 0:30:11]}  Re8 {[%clk 0:48:58]} 18. e4 {[%clk 0:25:16]}  fxe4 {[%clk 0:48:54]} 19. Bxe4 {[%clk 0:25:26]}  Qf6 {[%clk 0:48:13]} 20. Ne2 {[%clk 0:22:21]}  h5 {[%clk 0:42:11]} 21. Ng3 {[%clk 0:14:40]}  h4 {[%clk 0:42:20]} 22. Nf1 {[%clk 0:14:57]}  Re7 {[%clk 0:39:12]} 23. Bd3 {[%clk 0:13:55]}  Rxe1 {[%clk 0:28:29]} 24. Rxe1 {[%clk 0:14:16]}  Bxh3 {[%clk 0:28:15]} 25. N1d2 {[%clk 0:08:40]}  Bg4 {[%clk 0:27:02]} 26. Ne4 {[%clk 0:08:34]}  Qd8 {[%clk 0:26:32]} 27. Nfg5 {[%clk 0:07:24]}  f5 {[%clk 0:24:25]} 0-1


[Site "http://www.chessbomb.com"]

[Event "World Junior Chess Championship U20 2022"]
[White "Jakab, Bela"]
[Black "Ahmed, Younes Alkhemeiri"]
[WhiteFideId "14933128"]
[BlackFideId "9324585"]
[WhiteElo "2353"]
[BlackElo "1139"]
[Result "1-0"]
[Round "01"]
[TimeControl "5400+30"]
[Date "2022.10.12"]
[WhiteClock "1:20:55"]
[BlackClock "1:25:44"]

1. e3 {[%clk 1:30:54]}  d5 {[%clk 1:30:46]} 2. d4 {[%clk 1:31:16]}  Nf6 {[%clk 1:31:08]} 3. Nf3 {[%clk 1:31:38]}  e6 {[%clk 1:31:12]} 4. Bd3 {[%clk 1:31:49]}  Nc6 {[%clk 1:31:10]} 5. O-O {[%clk 1:32:04]}  Bd6 {[%clk 1:31:23]} 6. Nbd2 {[%clk 1:32:22]}  O-O {[%clk 1:31:18]} 7. c4 {[%clk 1:32:29]}  dxc4 {[%clk 1:31:18]} 8. Nxc4 {[%clk 1:32:52]}  Nb4 {[%clk 1:29:21]} 9. Bb1 {[%clk 1:31:51]}  Re8 {[%clk 1:28:15]} 10. a3 {[%clk 1:31:38]}  Nc6 {[%clk 1:28:23]} 11. e4 {[%clk 1:28:35]}  Bf8 {[%clk 1:27:10]} 12. e5 {[%clk 1:22:27]}  Nd5 {[%clk 1:27:20]} 13. Bxh7+ {[%clk 1:20:50]}  Kxh7 {[%clk 1:27:03]} 14. Ng5+ {[%clk 1:21:13]}  Kg8 {[%clk 1:26:03]} 15. Qh5 {[%clk 1:19:39]}  Bxa3 {[%clk 1:26:12]} 16. Qxf7+ {[%clk 1:19:43]}  Kh8 {[%clk 1:26:11]} 17. Qh5+ {[%clk 1:20:07]}  Kg8 {[%clk 1:25:41]} 18. Qh7+ {[%clk 1:20:31]}  Kf8 {[%clk 1:25:44]} 19. Qh8+ {[%clk 1:20:55]} 1-0


[Site "http://www.chessbomb.com"]

[Event "World Junior Chess Championship U20 2022"]
[White "Esipenko, Andrey"]
[Black "Harshavardhan, G B"]
[WhiteFideId "24175439"]
[BlackFideId "25059009"]
[WhiteElo "2668"]
[BlackElo "2433"]
[Result "1-0"]
[Round "02"]
[TimeControl "5400+30"]
[Date "2022.10.13"]
[WhiteClock "0:02:56"]
[BlackClock "0:03:21"]

1. e4 {[%clk 1:30:38]}  c5 {[%clk 1:30:35]} 2. Nf3 {[%clk 1:30:43]}  d6 {[%clk 1:30:16]} 3. Bb5+ {[%clk 1:30:37]}  Nd7 {[%clk 1:30:17]} 4. Ba4 {[%clk 1:30:52]}  Nf6 {[%clk 1:29:05]} 5. O-O {[%clk 1:31:09]}  g6 {[%clk 1:25:21]} 6. Qe2 {[%clk 1:30:16]}  Bg7 {[%clk 1:24:38]} 7. c3 {[%clk 1:30:31]}  O-O {[%clk 1:24:38]} 8. d4 {[%clk 1:30:56]}  e5 {[%clk 1:20:18]} 9. dxe5 {[%clk 1:31:17]}  Nxe5 {[%clk 1:17:25]} 10. Nxe5 {[%clk 1:31:42]}  dxe5 {[%clk 1:17:46]} 11. Bb3 {[%clk 1:32:03]}  Qe8 {[%clk 1:05:55]} 12. Bg5 {[%clk 1:25:16]}  Nh5 {[%clk 0:59:48]} 13. Nd2 {[%clk 1:18:11]}  Be6 {[%clk 0:53:30]} 14. g3 {[%clk 1:14:37]}  b6 {[%clk 0:45:50]} 15. Bxe6 {[%clk 0:57:23]}  Qxe6 {[%clk 0:45:58]} 16. a4 {[%clk 0:57:11]}  Rab8 {[%clk 0:41:27]} 17. Rfd1 {[%clk 0:53:14]}  h6 {[%clk 0:34:05]} 18. Be3 {[%clk 0:52:12]}  Rfc8 {[%clk 0:34:21]} 19. Nc4 {[%clk 0:48:25]}  Nf6 {[%clk 0:31:52]} 20. Rd6 {[%clk 0:47:35]}  Qe7 {[%clk 0:31:42]} 21. f3 {[%clk 0:46:32]}  Ne8 {[%clk 0:30:48]} 22. Rd2 {[%clk 0:41:33]}  Rd8 {[%clk 0:22:10]} 23. Rad1 {[%clk 0:41:33]}  Nc7 {[%clk 0:19:49]} 24. Rd6 {[%clk 0:34:53]}  Ne6 {[%clk 0:18:17]} 25. R1d5 {[%clk 0:33:24]}  Rxd6 {[%clk 0:16:55]} 26. Rxd6 {[%clk 0:33:31]}  Rd8 {[%clk 0:11:32]} 27. Qd2 {[%clk 0:32:28]}  Rxd6 {[%clk 0:11:25]} 28. Qxd6 {[%clk 0:32:52]}  Qe8 {[%clk 0:11:29]} 29. b3 {[%clk 0:32:43]}  b5 {[%clk 0:11:39]} 30. axb5 {[%clk 0:32:11]}  Qxb5 {[%clk 0:11:58]} 31. Qd1 {[%clk 0:32:37]}  a5 {[%clk 0:11:12]} 32. Na3 {[%clk 0:32:11]}  Qb7 {[%clk 0:08:20]} 33. Bf2 {[%clk 0:26:32]}  Kh7 {[%clk 0:06:13]} 34. Kg2 {[%clk 0:26:47]}  h5 {[%clk 0:03:21]} 35. Qd5 {[%clk 0:19:18]}  Qa6 {[%clk 0:03:43]} 36. Nc4 {[%clk 0:19:32]}  h4 {[%clk 0:03:05]} 37. Qd7 {[%clk 0:19:13]}  a4 {[%clk 0:02:37]} 38. Qxa4 {[%clk 0:18:33]}  Qc8 {[%clk 0:02:58]} 39. Nb6 {[%clk 0:10:20]}  h3+ {[%clk 0:03:02]} 40. Kf1 {[%clk 0:10:24]}  Qd8 {[%clk 0:01:20]} 41. Nd5 {[%clk 0:10:10]}  Ng5 {[%clk 0:01:19]} 42. Ke2 {[%clk 0:10:01]}  f5 {[%clk 0:01:24]} 43. Be3 {[%clk 0:09:11]}  fxe4 {[%clk 0:26:12]} 44. fxe4 {[%clk 0:39:08]}  Nf7 {[%clk 0:21:46]} 45. Qc6 {[%clk 0:29:26]}  Nd6 {[%clk 0:20:48]} 46. c4 {[%clk 0:26:36]}  Nxe4 {[%clk 0:08:31]} 47. Qe6 {[%clk 0:23:46]}  Qa8 {[%clk 0:07:47]} 48. Qxh3+ {[%clk 0:23:40]}  Kg8 {[%clk 0:08:10]} 49. Qe6+ {[%clk 0:06:30]}  Kh8 {[%clk 0:08:14]} 50. Kd3 {[%clk 0:03:13]}  Qa1 {[%clk 0:07:04]} 51. Kxe4 {[%clk 0:02:35]}  Qh1+ {[%clk 0:03:31]} 52. Kd3 {[%clk 0:03:01]}  Qd1+ {[%clk 0:00:48]} 53. Bd2 {[%clk 0:02:57]}  e4+ {[%clk 0:00:37]} 54. Qxe4 {[%clk 0:02:15]}  Qb1+ {[%clk 0:00:58]} 55. Ke3 {[%clk 0:02:43]}  Bd4+ {[%clk 0:01:16]} 56. Kf4 {[%clk 0:02:24]}  Qd1 {[%clk 0:01:10]} 57. Bc3 {[%clk 0:01:47]}  Qc1+ {[%clk 0:01:27]} 58. Qe3 {[%clk 0:01:00]}  Qxe3+ {[%clk 0:01:49]} 59. Nxe3 {[%clk 0:01:00]}  Bxc3 {[%clk 0:02:12]} 60. Ke4 {[%clk 0:01:37]}  Bd4 {[%clk 0:02:34]} 61. b4 {[%clk 0:01:44]}  Kg7 {[%clk 0:02:32]} 62. b5 {[%clk 0:02:06]}  Bc3 {[%clk 0:02:57]} 63. b6 {[%clk 0:02:31]}  Ba5 {[%clk 0:03:21]} 64. Nd5 {[%clk 0:02:56]} 1-0


[Site "http://www.chessbomb.com"]

[Event "World Junior Chess Championship U20 2022"]
[White "Svane, Frederik"]
[Black "Moksh, Amit Doshi"]
[WhiteFideId "12923044"]
[BlackFideId "25064967"]
[WhiteElo "2566"]
[BlackElo "2430"]
[Result "1-0"]
[Round "02"]
[TimeControl "5400+30"]
[Date "2022.10.13"]
[WhiteClock "0:27:29"]
[BlackClock "0:27:59"]

1. c4 {[%clk 1:30:56]}  Nf6 {[%clk 1:28:57]} 2. Nc3 {[%clk 1:31:19]}  e5 {[%clk 1:27:45]} 3. Nf3 {[%clk 1:31:43]}  Nc6 {[%clk 1:27:45]} 4. e4 {[%clk 1:32:09]}  Bb4 {[%clk 1:26:44]} 5. d3 {[%clk 1:32:30]}  d6 {[%clk 1:27:21]} 6. a3 {[%clk 1:32:55]}  Bc5 {[%clk 1:27:21]} 7. b4 {[%clk 1:33:18]}  Bb6 {[%clk 1:27:38]} 8. Be3 {[%clk 1:33:42]}  O-O {[%clk 1:24:31]} 9. Be2 {[%clk 1:33:49]}  Bg4 {[%clk 1:18:19]} 10. Na4 {[%clk 1:33:56]}  Bxf3 {[%clk 1:11:16]} 11. Bxf3 {[%clk 1:34:16]}  Bxe3 {[%clk 1:11:16]} 12. fxe3 {[%clk 1:34:39]}  a5 {[%clk 1:10:51]} 13. b5 {[%clk 1:32:46]}  Ne7 {[%clk 1:11:13]} 14. O-O {[%clk 1:30:26]}  c6 {[%clk 1:09:30]} 15. Rb1 {[%clk 1:23:03]}  Ng6 {[%clk 0:54:27]} 16. Rf2 {[%clk 1:15:35]}  Nh4 {[%clk 0:46:17]} 17. Nc3 {[%clk 1:07:39]}  Qe7 {[%clk 0:43:12]} 18. Qd2 {[%clk 0:51:24]}  Nxf3+ {[%clk 0:38:27]} 19. Rxf3 {[%clk 0:50:24]}  d5 {[%clk 0:35:41]} 20. exd5 {[%clk 0:38:51]}  cxd5 {[%clk 0:35:37]} 21. Rbf1 {[%clk 0:33:46]}  dxc4 {[%clk 0:29:07]} 22. Rxf6 {[%clk 0:29:10]}  gxf6 {[%clk 0:29:20]} 23. dxc4 {[%clk 0:24:15]}  f5 {[%clk 0:24:55]} 24. Nd5 {[%clk 0:23:26]}  Qd6 {[%clk 0:21:15]} 25. Rxf5 {[%clk 0:22:07]}  f6 {[%clk 0:20:19]} 26. c5 {[%clk 0:09:28]}  Qe6 {[%clk 0:18:42]} 27. e4 {[%clk 0:09:39]}  Rf7 {[%clk 0:17:05]} 28. h3 {[%clk 0:09:27]}  Kh8 {[%clk 0:16:02]} 29. Qf2 {[%clk 0:09:29]}  Raf8 {[%clk 0:14:20]} 30. a4 {[%clk 0:09:55]}  Rg7 {[%clk 0:10:59]} 31. Kh2 {[%clk 0:06:19]}  Rg6 {[%clk 0:09:45]} 32. Rf3 {[%clk 0:04:20]}  Rf7 {[%clk 0:09:03]} 33. Qc2 {[%clk 0:03:54]}  Rg8 {[%clk 0:08:12]} 34. Rf5 {[%clk 0:02:59]}  Rg5 {[%clk 0:06:27]} 35. Rf3 {[%clk 0:01:35]}  Rg8 {[%clk 0:06:49]} 36. Rf5 {[%clk 0:01:35]}  Rg5 {[%clk 0:07:12]} 37. Rxg5 {[%clk 0:00:47]}  fxg5 {[%clk 0:07:30]} 38. c6 {[%clk 0:01:14]}  bxc6 {[%clk 0:03:53]} 39. bxc6 {[%clk 0:01:43]}  Rf8 {[%clk 0:02:47]} 40. Qc5 {[%clk 0:01:06]}  Rc8 {[%clk 0:01:08]} 41. c7 {[%clk 0:29:03]}  Qf7 {[%clk 0:27:45]} 42. Qd6 {[%clk 0:27:18]}  Re8 {[%clk 0:27:29]} 43. Qd8 {[%clk 0:27:09]}  Qf8 {[%clk 0:27:37]} 44. Qxe8 {[%clk 0:27:02]}  Qxe8 {[%clk 0:27:59]} 45. Nb6 {[%clk 0:27:29]} 1-0


[Site "http://www.chessbomb.com"]